Workbook

Sheet Informe 3
A1: AMÉRICA MÓVIL PERÚ S.A.C.
A3: Informe 3: Imputacion del capital invertido a las lineas de negocio
A4: Al 31 de diciembre de 2019
A7: Expresado en miles de Soles | B7: Código PCR | C7: 1. Acceso Instalación Telefonía Fija de Abonado Urbano | D7: 2. Prestación del servicio de voz Telefonía Fija local desde Abonado Urbano | E7: 3. Prestación del servicio de voz Telefonía Fija LD desde Abonado Urbano | F7: 4. Prestación del servicio de voz Telefonía Fija Local desde TUP Urbano | G7: 5. Prestación del servicio de voz Telefonía Fija LD desde TUP Urbano | H7: 6. Acceso Instalación Telefonía Fija de Abonado Rural | I7: 7. Prestación del servicio de voz Telefonía Fija Local desde Abonado Rural | J7: 8. Prestación del servicio de voz Telefonía Fija LD desde Abonado Rural | K7: 9. Prestación del servicio de voz Telefonía Fija Local desde TUP Rural | L7: 10. Prestación del servicio de voz Telefonía Fija LD desde TUP Rural | M7: 11. Instalación Televisión de Paga | N7: 12. Prestación de servicios Televisión de Paga | O7: 13. Instalación Internet Fijo | P7: 14. Prestación de servicios Internet Fijo | Q7: 15. Prestación de servicio voz móvil por Telefonía Móvil | R7: 16. Mensajes de Texto Telefonía Móvil | S7: 17. Roaming Internacional por Telefonía Móvil | T7: 18. Prestación de Internet Móvil | U7: 19. Servicios Suplementarios | V7: 20. Servicios de valor añadido (No incluye Internet) | W7: 21. Suministro de Equipos | X7: 22. Instalación para Alquiler de circuitos y Transmisión de Datos para clientes privados y otros operadores | Y7: 23. Alquiler de Circuitos y Transmisión de Datos a clientes privados y otros operadores | Z7: 24. Provisión de acceso a EEDE | AA7: 25. Interconexión | AB7: 26. Otros | AC7: Total
A9: CAPITAL DE TRABAJO | C9: -59 | D9: -98114 | E9: -2044 | F9: -911 | G9: -157 | H9: 0 | I9: 0 | J9: 0 | K9: -5 | L9: 0 | M9: -838 | N9: -89091 | O9: -127 | P9: -150396 | Q9: -137145 | R9: -47586 | S9: -7651 | T9: -753397 | U9: 17190 | V9: -46174 | W9: -406092 | X9: -7 | Y9: -5669 | Z9: -27 | AA9: -41676 | AB9: -251010 | AC9: =+SUM(C9:AB9) -> -2020986
A10: ACTIVO CORRIENTE | C10: 10 | D10: 16472 | E10: 343 | F10: 128 | G10: 22 | H10: 0 | I10: 0 | J10: 0 | K10: 1 | L10: 0 | M10: 182 | N10: 19346 | O10: 32 | P10: 37433 | Q10: 325532 | R10: 31341 | S10: 5027 | T10: 498069 | U10: 33650 | V10: 30411 | W10: 490690 | X10: 22 | Y10: 17480 | Z10: 18 | AA10: 56357 | AB10: 305182 | AC10: =+SUM(C10:AB10) -> 1867748
A11: PASIVO CORRIENTE | C11: -69 | D11: -114586 | E11: -2387 | F11: -1039 | G11: -179 | H11: 0 | I11: 0 | J11: 0 | K11: -6 | L11: 0 | M11: -1020 | N11: -108437 | O11: -158 | P11: -187829 | Q11: -462676 | R11: -78927 | S11: -12678 | T11: -1251466 | U11: -16459 | V11: -76585 | W11: -896782 | X11: -29 | Y11: -23149 | Z11: -46 | AA11: -98033 | AB11: -556194 | AC11: =+SUM(C11:AB11) -> -3888734
A13: ACTIVO FIJO NETO | B13: 30 | C13: =+C14+C46+C54+C61 -> 155 | D13: =+D14+D46+D54+D61 -> 256683 | E13: 5349 | F13: 1777 | G13: 306 | H13: 0 | I13: 0 | J13: 0 | K13: 10 | L13: 0 | M13: 1887 | N13: 200724 | O13: 697 | P13: 825381 | Q13: 169900 | R13: 158192 | S13: 0 | T13: 2514020 | U13: 10488 | V13: 153497 | W13: 675 | X13: 28 | Y13: 23142 | Z13: 91 | AA13: 0 | AB13: 9553 | AC13: =+SUM(C13:AB13) -> 4332555
A14: Planta y Equipo de Comunicaciones | B14: 301 | C14: =+C15+C23+C24+C33+C40 -> 70 | D14: 116182 | E14: 2421 | F14: 650 | G14: 112 | H14: 0 | I14: 0 | J14: 0 | K14: 3 | L14: 0 | M14: 1402 | N14: 149176 | O14: 544 | P14: 642936 | Q14: 9334 | R14: 41268 | S14: 0 | T14: 655844 | U14: 7911 | V14: 40044 | W14: 674 | X14: 21 | Y14: 17445 | Z14: 29 | AA14: 0 | AB14: 9495 | AC14: =+SUM(C14:AB14) -> 1695561
A15: Equipos terminales | B15: 3011 | C15: =+SUM(C16:C21) -> 52 | D15: 85212 | E15: 1775 | F15: 571 | G15: 98 | H15: 0 | I15: 0 | J15: 0 | K15: 3 | L15: 0 | M15: 1029 | N15: 109397 | O15: 198 | P15: 233613 | Q15: 24 | R15: 132 | S15: 0 | T15: 2106 | U15: 2687 | V15: 128 | W15: 673 | X15: 11 | Y15: =+SUM(Y16:Y21) -> 8710 | Z15: 0 | AA15: 0 | AB15: =+SUM(AB16:AB19) -> 7248 | AC15: 453667
A16: Equipos terminales -Teléfonos de Abonados | B16: 30111 | C16: 3 | D16: 4228 | E16: 88 | F16: 11 | G16: 2 | H16: 0 | I16: 0 | J16: 0 | K16: 0 | L16: 0 | M16: 55 | N16: 5807 | O16: 8 | P16: 9319 | Q16: 0 | R16: 0 | S16: 0 | T16: 0 | U16: 39 | V16: 0 | W16: 0 | X16: 0 | Y16: =65+1 -> 66 | Z16: 0 | AA16: 0 | AB16: =370 -> 370 | AC16: 19996
A17: Equipos terminales -Teléfonos Públicos | B17: 30112 | C17: 3 | D17: 4768 | E17: 99 | F17: 370 | G17: 64 | H17: 0 | I17: 0 | J17: 0 | K17: 2 | L17: 0 | M17: 2 | N17: 263 | O17: 9 | P17: 10466 | Q17: 1 | R17: 6 | S17: 0 | T17: 103 | U17: 28 | V17: 6 | W17: 672 | X17: 5 | Y17: =4276+1 -> 4277 | Z17: 0 | AA17: 0 | AB17: =253 -> 253 | AC17: 21397
A18: Equipos Terminales -Televisión de Paga | B18: 30113 | C18: 19 | D18: 30998 | E18: 646 | F18: 78 | G18: 13 | H18: 0 | I18: 0 | J18: 0 | K18: 0 | L18: 0 | M18: 401 | N18: 42610 | O18: 58 | P18: 68316 | Q18: 0 | R18: 0 | S18: 0 | T18: 0 | U18: 285 | V18: 0 | W18: 0 | X18: 1 | Y18: 478 | Z18: 0 | AA18: 0 | AB18: 2733 | AC18: 146636
A19: Equipos Terminales -Internet Fijo | B19: 30114 | C19: 27 | D19: 45218 | E19: 942 | F19: 112 | G19: 19 | H19: 0 | I19: 0 | J19: 0 | K19: 1 | L19: 0 | M19: 571 | N19: 60717 | O19: 123 | P19: 145512 | Q19: 1 | R19: 3 | S19: 0 | T19: 51 | U19: 2335 | V19: 3 | W19: 1 | X19: 5 | Y19: 3889 | Z19: 0 | AA19: 0 | AB19: 3892 | AC19: 263422
A20: Equipos Terminales -Telefonía Móvil | B20: 30115 | C20: 0 | D20: 0 | E20: 0 | F20: 0 | G20: 0 | H20: 0 | I20: 0 | J20: 0 | K20: 0 | L20: 0 | M20: 0 | N20: 0 | O20: 0 | P20: 0 | Q20: 22 | R20: 123 | S20: 0 | T20: 1952 | U20: 0 | V20: 119 | W20: 0 | X20: 0 | Y20: 0 | Z20: 0 | AA20: 0 | AB20: 0 | AC20: 2216
A21: Equipos Terminales -Internet Móvil | B21: 30116 | C21: 0 | D21: 0 | E21: 0 | F21: 0 | G21: 0 | H21: 0 | I21: 0 | J21: 0 | K21: 0 | L21: 0 | M21: 0 | N21: 0 | O21: 0 | P21: 0 | Q21: 0 | R21: 0 | S21: 0 | T21: 0 | U21: 0 | V21: 0 | W21: 0 | X21: 0 | Y21: 0 | Z21: 0 | AA21: 0 | AB21: 0 | AC21: 0
A22: Otros Equipos Terminales | B22: 30117 | C22: 0 | D22: 0 | E22: 0 | F22: 0 | G22: 0 | H22: 0 | I22: 0 | J22: 0 | K22: 0 | L22: 0 | M22: 0 | N22: 0 | O22: 0 | P22: 0 | Q22: 0 | R22: 0 | S22: 0 | T22: 0 | U22: 0 | V22: 0 | W22: 0 | X22: 0 | Y22: 0 | Z22: 0 | AA22: 0 | AB22: 0 | AC22: 0
A23: Planta y Equipo de Acceso Local | B23: 3012 | C23: 2 | D23: 3902 | E23: 81 | F23: 9 | G23: 2 | H23: 0 | I23: 0 | J23: 0 | K23: 0 | L23: 0 | M23: 50 | N23: 5289 | O23: 21 | P23: 24858 | Q23: 0 | R23: 3 | S23: 0 | T23: 42 | U23: 704 | V23: 3 | W23: 0 | X23: 1 | Y23: 1172 | Z23: 0 | AA23: 0 | AB23: 338 | AC23: 36477
A24: Equipos Centrales y de agregación | B24: 3013 | C24: =+C25+C26+C27+C28+C29+C30+C31+C32 -> 4 | D24: =+D25+D26+D27+D28+D29+D30+D31+D32 -> 5664 | E24: 119 | F24: 13 | G24: 2 | H24: 0 | I24: 0 | J24: 0 | K24: 0 | L24: 0 | M24: 65 | N24: 7015 | O24: 13 | P24: 14456 | Q24: 429 | R24: 2419 | S24: 0 | T24: 38449 | U24: 50 | V24: 2348 | W24: 0 | X24: 0 | Y24: 84 | Z24: 2 | AA24: 0 | AB24: 466 | AC24: 71598
A25: Centrales Locales | B25: 30131 | C25: 0 | D25: 0 | E25: 0 | F25: 0 | G25: 0 | H25: 0 | I25: 0 | J25: 0 | K25: 0 | L25: 0 | M25: 0 | N25: 0 | O25: 0 | P25: 0 | Q25: 0 | R25: 0 | S25: 0 | T25: 0 | U25: 0 | V25: 0 | W25: 0 | X25: 0 | Y25: 0 | Z25: 0 | AA25: 0 | AB25: 0 | AC25: 0
A26: Centrales de Larga Distancia Nacional | B26: 30132 | C26: 0 | D26: 0 | E26: 0 | F26: 0 | G26: 0 | H26: 0 | I26: 0 | J26: 0 | K26: 0 | L26: 0 | M26: 0 | N26: =1+1 -> 2 | O26: 0 | P26: 124 | Q26: 23 | R26: 130 | S26: 0 | T26: 2061 | U26: 2 | V26: 126 | W26: 0 | X26: 0 | Y26: 2 | Z26: 0 | AA26: 0 | AB26: 0 | AC26: 2470
A27: Centrales de Larga Distancia Internacional | B27: 30133 | C27: 0 | D27: 0 | E27: 0 | F27: 0 | G27: 0 | H27: 0 | I27: 0 | J27: 0 | K27: 0 | L27: 0 | M27: 0 | N27: 0 | O27: 0 | P27: 1 | Q27: 0 | R27: 1 | S27: 0 | T27: 23 | U27: 0 | V27: 2 | W27: 0 | X27: 0 | Y27: 0 | Z27: 0 | AA27: 0 | AB27: 0 | AC27: 27
A28: Controladores | B28: 30134 | C28: 1 | D28: 1137 | E28: 24 | F28: 2 | G28: 0 | H28: 0 | I28: 0 | J28: 0 | K28: 0 | L28: 0 | M28: 9 | N28: =968+1 -> 969 | O28: 2 | P28: 2189 | Q28: 150 | R28: 844 | S28: 0 | T28: 13412 | U28: 14 | V28: 819 | W28: 0 | X28: 0 | Y28: 25 | Z28: 0 | AA28: 0 | AB28: 64 | AC28: 19661
A29: Gateways | B29: 30135 | C29: 0 | D29: 170 | E29: 4 | F29: 0 | G29: 0 | H29: 0 | I29: 0 | J29: 0 | K29: 0 | L29: 0 | M29: 0 | N29: =30+1 -> 31 | O29: 1 | P29: 809 | Q29: 10 | R29: 56 | S29: 0 | T29: 885 | U29: 27 | V29: 54 | W29: 0 | X29: 0 | Y29: 45 | Z29: 0 | AA29: 0 | AB29: 2 | AC29: 2094
A30: Cabeceras | B30: 30136 | C30: 3 | D30: 4355 | E30: 91 | F30: 11 | G30: 2 | H30: 0 | I30: 0 | J30: 0 | K30: 0 | L30: 0 | M30: 56 | N30: =5979+1 -> 5980 | O30: 8 | P30: 9078 | Q30: 0 | R30: 0 | S30: 0 | T30: 2 | U30: 4 | V30: 0 | W30: 0 | X30: 0 | Y30: 6 | Z30: 0 | AA30: 0 | AB30: 400 | AC30: 19996
A31: Transmisión de Datos (Servicio Final) | B31: 30137 | C31: 0 | D31: 2 | E31: 0 | F31: 0 | G31: 0 | H31: 0 | I31: 0 | J31: 0 | K31: 0 | L31: 0 | M31: 0 | N31: =32+1 -> 33 | O31: 2 | P31: 2255 | Q31: 246 | R31: 1388 | S31: 0 | T31: 22066 | U31: 3 | V31: 1347 | W31: 0 | X31: 0 | Y31: 6 | Z31: 2 | AA31: 0 | AB31: 0 | AC31: 27350
A32: Otros equipos centrales | B32: 30138 | C32: 0 | D32: 0 | E32: 0 | F32: 0 | G32: 0 | H32: 0 | I32: 0 | J32: 0 | K32: 0 | L32: 0 | M32: 0 | N32: 0 | O32: 0 | P32: 0 | Q32: 0 | R32: 0 | S32: 0 | T32: 0 | U32: 0 | V32: 0 | W32: 0 | X32: 0 | Y32: 0 | Z32: 0 | AA32: 0 | AB32: 0 | AC32: 0
A33: Transmisión (Gran capacidad) | B33: 3014 | C33: =+C34+C35+C36+C37+C38+C39 -> 8 | D33: 14305 | E33: 298 | F33: 40 | G33: 7 | H33: 0 | I33: 0 | J33: 0 | K33: 0 | L33: 0 | M33: 203 | N33: 21656 | O33: 288 | P33: 342179 | Q33: 4703 | R33: 26163 | S33: 0 | T33: 415781 | U33: 4391 | V33: 25386 | W33: 0 | X33: 9 | Y33: 7308 | Z33: 18 | AA33: 0 | AB33: 1208 | AC33: =+SUM(C33:AB33) -> 863951
A34: Cables de Transmisión (excluidos internacional) | B34: 30141 | C34: 8 | D34: 13787 | E34: 287 | F34: 34 | G34: 6 | H34: 0 | I34: 0 | J34: 0 | K34: 0 | L34: 0 | M34: 179 | N34: 19058 | O34: 102 | P34: 121018 | Q34: 958 | R34: 5402 | S34: 0 | T34: 85845 | U34: 2907 | V34: 5241 | W34: 0 | X34: 6 | Y34: 4840 | Z34: 3 | AA34: 0 | AB34: 1208 | AC34: 260889
A35: Equipos de Transmisión (excluidos internacional) | B35: 30142 | C35: 0 | D35: 137 | E35: 3 | F35: 1 | G35: 0 | H35: 0 | I35: 0 | J35: 0 | K35: 0 | L35: 0 | M35: 9 | N35: 986 | O35: 56 | P35: 66617 | Q35: 502 | R35: 2480 | S35: 0 | T35: 39412 | U35: 22 | V35: 2406 | W35: 0 | X35: 0 | Y35: 37 | Z35: 3 | AA35: 0 | AB35: 0 | AC35: 112671
A36: Equipos de Transmisión Radio | B36: 30143 | C36: 0 | D36: 25 | E36: 1 | F36: 5 | G36: 1 | H36: 0 | I36: 0 | J36: 0 | K36: 0 | L36: 0 | M36: 0 | N36: 1 | O36: 3 | P36: 4103 | Q36: 2461 | R36: 13875 | S36: 0 | T36: 220502 | U36: 7 | V36: 13463 | W36: 0 | X36: 0 | Y36: 9 | Z36: 8 | AA36: 0 | AB36: 0 | AC36: 254464
A37: Equipos de Transmisión por Satélite | B37: 30144 | C37: 0 | D37: 0 | E37: 0 | F37: 0 | G37: 0 | H37: 0 | I37: 0 | J37: 0 | K37: 0 | L37: 0 | M37: 0 | N37: 12 | O37: 1 | P37: 870 | Q37: 75 | R37: 421 | S37: 0 | T37: 6687 | U37: 1 | V37: 408 | W37: 0 | X37: 0 | Y37: 1 | Z37: 0 | AA37: 0 | AB37: 0 | AC37: 8476
A38: Cables y Equipos internacionales (excluyendo satélite) | B38: 30145 | C38: 0 | D38: 0 | E38: 0 | F38: 0 | G38: 0 | H38: 0 | I38: 0 | J38: 0 | K38: 0 | L38: 0 | M38: 0 | N38: 1 | O38: 0 | P38: 74 | Q38: 12 | R38: 65 | S38: 0 | T38: 1037 | U38: 0 | V38: 64 | W38: 0 | X38: 0 | Y38: 0 | Z38: 0 | AA38: 0 | AB38: 0 | AC38: 1253
A39: Otros equipos de transmisión | B39: 30146 | C39: 0 | D39: 356 | E39: 7 | F39: 0 | G39: 0 | H39: 0 | I39: 0 | J39: 0 | K39: 0 | L39: 0 | M39: 15 | N39: 1598 | O39: 126 | P39: 149497 | Q39: 695 | R39: 3920 | S39: 0 | T39: 62298 | U39: 1454 | V39: 3804 | W39: 0 | X39: 3 | Y39: 2421 | Z39: 4 | AA39: 0 | AB39: 0 | AC39: 226198
A40: Otros Activos Fijos Brutos de Comunicaciones | B40: 3015 | C40: =+C41+C42+C43+C44+C45 -> 4 | D40: 7099 | E40: 148 | F40: 17 | G40: 3 | H40: 0 | I40: 0 | J40: 0 | K40: 0 | L40: 0 | M40: 55 | N40: 5819 | O40: 24 | P40: 27830 | Q40: 4178 | R40: 12551 | S40: 0 | T40: 199466 | U40: 79 | V40: 12179 | W40: 1 | X40: 0 | Y40: 171 | Z40: 9 | AA40: 0 | AB40: 235 | AC40: 269868
A41: Equipos de Fuerza (Planta Energía Eléctrica) | B41: 30151 | C41: 2 | D41: 4068 | E41: 85 | F41: 1 | G41: 0 | H41: 0 | I41: 0 | J41: 0 | K41: 0 | L41: 0 | M41: 19 | N41: 1992 | O41: 11 | P41: 12793 | Q41: 1043 | R41: 2668 | S41: 0 | T41: 42403 | U41: 40 | V41: 2589 | W41: 0 | X41: 0 | Y41: 67 | Z41: 1 | AA41: 0 | AB41: 0 | AC41: 67782
A42: Sistemas de Gestión de Red | B42: 30152 | C42: 0 | D42: 34 | E42: 1 | F42: 6 | G42: 1 | H42: 0 | I42: 0 | J42: 0 | K42: 0 | L42: 0 | M42: 1 | N42: 111 | O42: 5 | P42: 6088 | Q42: 850 | R42: 4792 | S42: 0 | T42: 76152 | U42: 5 | V42: 4650 | W42: 0 | X42: 0 | Y42: 38 | Z42: 4 | AA42: 0 | AB42: 0 | AC42: 92738
A43: Equipos para Interconexión | B43: 30153 | C43: 0 | D43: 0 | E43: 0 | F43: 0 | G43: 0 | H43: 0 | I43: 0 | J43: 0 | K43: 0 | L43: 0 | M43: 0 | N43: 0 | O43: 0 | P43: 0 | Q43: 0 | R43: 0 | S43: 0 | T43: 0 | U43: 0 | V43: 0 | W43: 0 | X43: 0 | Y43: 0 | Z43: 0 | AA43: 0 | AB43: 0 | AC43: 0
A44: Equipos para Circuitos Alquilados | B44: 30154 | C44: 0 | D44: 0 | E44: 0 | F44: 0 | G44: 0 | H44: 0 | I44: 0 | J44: 0 | K44: 0 | L44: 0 | M44: 0 | N44: 0 | O44: 0 | P44: 0 | Q44: 0 | R44: 0 | S44: 0 | T44: 0 | U44: 0 | V44: 0 | W44: 0 | X44: 0 | Y44: 0 | Z44: 0 | AA44: 0 | AB44: 0 | AC44: 0
A45: Otros | B45: 30155 | C45: 2 | D45: 2997 | E45: 62 | F45: 10 | G45: 2 | H45: 0 | I45: 0 | J45: 0 | K45: 0 | L45: 0 | M45: 35 | N45: 3716 | O45: 8 | P45: 8949 | Q45: 2285 | R45: 5091 | S45: 0 | T45: 80911 | U45: 34 | V45: 4940 | W45: 1 | X45: 0 | Y45: 66 | Z45: 4 | AA45: 0 | AB45: 235 | AC45: 109348
A46: Terreno, Edificios, Planta y Equipos no de Telecomunicaciones | B46: 302 | C46: =+C47+C48+C49+C50+C51+C52+C53 -> 78 | D46: 128514 | E46: 2678 | F46: 1019 | G46: 175 | H46: 0 | I46: 0 | J46: 0 | K46: 6 | L46: 0 | M46: 439 | N46: 46720 | O46: 114 | P46: 136113 | Q46: 68625 | R46: 46040 | S46: 0 | T46: 731664 | U46: 656 | V46: 44673 | W46: 1 | X46: 3 | Y46: 2238 | Z46: 23 | AA46: 0 | AB46: 58 | AC46: 1209837
A47: Terrenos | B47: 3021 | C47: 61 | D47: 100233 | E47: 2088 | F47: 803 | G47: 138 | H47: 0 | I47: 0 | J47: 0 | K47: 5 | L47: 0 | M47: 337 | N47: 35806 | O47: 85 | P47: 100533 | Q47: 25656 | R47: 12480 | S47: 0 | T47: 198338 | U47: 481 | V47: 12109 | W47: 0 | X47: 2 | Y47: 1693 | Z47: 7 | AA47: 0 | AB47: 0 | AC47: 490855
A48: Edificios | B48: 3022 | C48: 17 | D48: 27386 | E48: 571 | F48: 209 | G48: 36 | H48: 0 | I48: 0 | J48: 0 | K48: 1 | L48: 0 | M48: 99 | N48: 10530 | O48: 27 | P48: 31588 | Q48: 34359 | R48: 13333 | S48: 0 | T48: 211898 | U48: 171 | V48: 12937 | W48: 1 | X48: 1 | Y48: 521 | Z48: 5 | AA48: 0 | AB48: 58 | AC48: 343748
A49: Vehículos y Ayudas Mecánicas | B49: 3023 | C49: 0 | D49: 129 | E49: 3 | F49: 1 | G49: 0 | H49: 0 | I49: 0 | J49: 0 | K49: 0 | L49: 0 | M49: 0 | N49: 47 | O49: 0 | P49: 179 | Q49: 873 | R49: 144 | S49: 0 | T49: 2283 | U49: 1 | V49: 139 | W49: 0 | X49: 0 | Y49: 3 | Z49: 0 | AA49: 0 | AB49: 0 | AC49: 3802
A50: Equipos Sistemas Informáticos | B50: 3024 | C50: 0 | D50: 279 | E50: 6 | F50: 2 | G50: 0 | H50: 0 | I50: 0 | J50: 0 | K50: 0 | L50: 0 | M50: 1 | N50: 114 | O50: 0 | P50: 498 | Q50: 1219 | R50: 190 | S50: 0 | T50: 3016 | U50: 1 | V50: 186 | W50: 0 | X50: 0 | Y50: 8 | Z50: 0 | AA50: 0 | AB50: 0 | AC50: 5520
A51: Edificios en arrendamiento financiero | B51: 3025 | C51: 0 | D51: 0 | E51: 0 | F51: 0 | G51: 0 | H51: 0 | I51: 0 | J51: 0 | K51: 0 | L51: 0 | M51: 0 | N51: 6 | O51: 0 | P51: 425 | Q51: 2319 | R51: 13075 | S51: 0 | T51: 207786 | U51: 0 | V51: 12687 | W51: 0 | X51: 0 | Y51: 1 | Z51: 8 | AA51: 0 | AB51: 0 | AC51: 236307
A52: Otros activos bajo la forma de arrendamiento o leasing | B52: 3026 | C52: 0 | D52: 1 | E52: 0 | F52: 0 | G52: 0 | H52: 0 | I52: 0 | J52: 0 | K52: 0 | L52: 0 | M52: 0 | N52: 0 | O52: 0 | P52: 1 | Q52: 1537 | R52: 6306 | S52: 0 | T52: 100213 | U52: 0 | V52: 6119 | W52: 0 | X52: 0 | Y52: 0 | Z52: 3 | AA52: 0 | AB52: 0 | AC52: 114180
A53: Otros Activos no de comunicaciones | B53: 3027 | C53: 0 | D53: 486 | E53: 10 | F53: 4 | G53: 1 | H53: 0 | I53: 0 | J53: 0 | K53: 0 | L53: 0 | M53: 2 | N53: 217 | O53: 2 | P53: 2889 | Q53: 2662 | R53: 512 | S53: 0 | T53: 8130 | U53: 2 | V53: 496 | W53: 0 | X53: 0 | Y53: 12 | Z53: 0 | AA53: 0 | AB53: 0 | AC53: 15425
A54: Activos Intangibles | B54: 31 | C54: =+C55+C56+C57+C58+C59+C60 -> 7 | D54: 11987 | E54: 250 | F54: 108 | G54: 19 | H54: 0 | I54: 0 | J54: 0 | K54: 1 | L54: 0 | M54: 46 | N54: 4828 | O54: 39 | P54: 46332 | Q54: 91941 | R54: 70884 | S54: 0 | T54: 1126512 | U54: 1921 | V54: 68780 | W54: 0 | X54: 4 | Y54: 3459 | Z54: 39 | AA54: 0 | AB54: 0 | AC54: 1427157
A55: Concesiones | B55: 311 | C55: 0 | D55: 2 | E55: 0 | F55: 0 | G55: 0 | H55: 0 | I55: 0 | J55: 0 | K55: 0 | L55: 0 | M55: 1 | N55: 93 | O55: 6 | P55: 6907 | Q55: 9142 | R55: 51535 | S55: 0 | T55: 818997 | U55: 8 | V55: 50005 | W55: 0 | X55: 0 | Y55: 12 | Z55: 30 | AA55: 0 | AB55: 0 | AC55: 936738
A56: Licencias | B56: 312 | C56: 0 | D56: 52 | E56: 1 | F56: 4 | G56: 1 | H56: 0 | I56: 0 | J56: 0 | K56: 0 | L56: 0 | M56: 2 | N56: 220 | O56: 13 | P56: 15045 | Q56: 741 | R56: 4176 | S56: 0 | T56: 66367 | U56: 112 | V56: 4052 | W56: 0 | X56: 0 | Y56: 212 | Z56: 2 | AA56: 0 | AB56: 0 | AC56: 91000
A57: Patentes y propiedad intelectual | B57: 313 | C57: 0 | D57: 0 | E57: 0 | F57: 0 | G57: 0 | H57: 0 | I57: 0 | J57: 0 | K57: 0 | L57: 0 | M57: 0 | N57: 0 | O57: 0 | P57: 0 | Q57: 0 | R57: 0 | S57: 0 | T57: 0 | U57: 0 | V57: 0 | W57: 0 | X57: 0 | Y57: 0 | Z57: 0 | AA57: 0 | AB57: 0 | AC57: =+SUM(C57:AB57) -> 0
A58: Software | B58: 314 | C58: 7 | D58: 11847 | E58: 247 | F58: 89 | G58: 15 | H58: 0 | I58: 0 | J58: 0 | K58: 1 | L58: 0 | M58: 41 | N58: 4341 | O58: 10 | P58: 12437 | Q58: 81154 | R58: 10079 | S58: 0 | T58: 160196 | U58: 55 | V58: 9780 | W58: 0 | X58: 0 | Y58: 240 | Z58: 5 | AA58: 0 | AB58: 0 | AC58: 290544
A59: Investigación y Desarrollo | B59: 315 | C59: 0 | D59: 0 | E59: 0 | F59: 0 | G59: 0 | H59: 0 | I59: 0 | J59: 0 | K59: 0 | L59: 0 | M59: 0 | N59: 0 | O59: 0 | P59: 0 | Q59: 0 | R59: 0 | S59: 0 | T59: 0 | U59: 0 | V59: 0 | W59: 0 | X59: 0 | Y59: 0 | Z59: 0 | AA59: 0 | AB59: 0 | AC59: 0
A60: Otros Activos Intangibles | B60: 316 | C60: 0 | D60: 86 | E60: 2 | F60: 15 | G60: 3 | H60: 0 | I60: 0 | J60: 0 | K60: 0 | L60: 0 | M60: 2 | N60: 174 | O60: 10 | P60: 11943 | Q60: 904 | R60: 5094 | S60: 0 | T60: 80952 | U60: 1746 | V60: 4943 | W60: 0 | X60: 4 | Y60: 2995 | Z60: 2 | AA60: 0 | AB60: 0 | AC60: 108875
A61: Otros Activos No Corrientes | B61: 32 | C61: 0 | D61: 0 | E61: 0 | F61: 0 | G61: 0 | H61: 0 | I61: 0 | J61: 0 | K61: 0 | L61: 0 | M61: 0 | N61: 0 | O61: 0 | P61: 0 | Q61: 0 | R61: 0 | S61: 0 | T61: 0 | U61: 0 | V61: 0 | W61: 0 | X61: 0 | Y61: 0 | Z61: 0 | AA61: 0 | AB61: 0 | AC61: 0
